Cogmind - Beta 10.2 @@@ ROGUE MODE // 2021.10.23 @ 21:55:40 Player: Peace Result: Destroyed by S-10 Pest with Light Assault Rifle Performance ------------- Evolutions (1) 500 Regions Visited (2) 400 Robots Destroyed (1) 5 Value Destroyed (10) 10 Prototype IDs (0) 0 Alien Tech Used (0) 0 Bonus (200) 200 TOTAL SCORE: 1115 Bonus ------- Pacifist 200 Cogmind --------- Core Integrity 0/400 Matter 279/300 Energy 91/100 System Corruption 0% Temperature Cool (0) Movement Core (50) Location -9/Materials Parts ------- > --- POWER (1) -------- (None) > --- PROPULSION (2) --- (None) > --- UTILITY (4) ------ Signal Interpreter Advanced Signal Interpreter Advanced Signal Interpreter Advanced Signal Interpreter > --- WEAPON (2) ------- (None) > --- INVENTORY (4) ---- Grenade Launcher Peak State ------------ > --- POWER ------------ (None) > --- PROPULSION ------- Flight Unit > --- UTILITY ---------- Signal Interpreter Advanced Signal Interpreter Advanced Signal Interpreter Advanced Signal Interpreter > --- WEAPON ----------- (None) > --- INVENTORY -------- Grenade Launcher [Rating: 11] Favorites ----------- Power None Propulsion Flight Unit Flight Unit Flight Unit Utility Advanced Signal Interpreter Device Terrain Scanner Processor Advanced Signal Interpreter Weapon None Build | -11 -10 -9 ------- Run | Scr Mat Mat Slots Evolved 2 | . . 2 Power . | . . . Propulsion . | . . . Utility 2 | . . 2 Weapon . | . . . Parts Attached 6 | . 2 4 Power . | . . . Engine . | . . . Core . | . . . Reactor . | . . . Propulsion 1 | . . 1 Treads . | . . . Leg . | . . . Wheel . | . . . Hover . | . . . Flight 1 | . . 1 Utility 5 | . 2 3 Device 1 | . 1 . Storage . | . . . Processor 4 | . 1 3 Hackware . | . . . Protection . | . . . Artifact . | . . . Weapon . | . . . Energy Gun . | . . . Energy Cannon . | . . . Ballistic Gun . | . . . Ballistic Cannon . | . . . Launcher . | . . . Special Weapon . | . . . Impact Weapon . | . . . Slashing Weapon . | . . . Piercing Weapon . | . . . Special Melee Weapon . | . . . Unidentified Prototypes . | . . . Parts Lost 2 | . 1 1 Power . | . . . Propulsion 1 | . . 1 Utility 1 | . 1 . Weapon . | . . . Highest Loss Streak 1 | . 1 1 Average Slot Usage (%) 19 | . 8 36 Device 1 | . 2 . Processor 18 | . 5 36 Naked Turns 56 | . 56 . Heaviest Build 1 | . 1 . Greatest Support 4 | 3 3 4 Greatest Overweight (x) . | . . . Average Overweight (x) . | . . . Largest Inventory Capacity 4 | 4 4 4 Average Capacity 4 | 4 4 4 Most Carried 1 | . 1 1 Average Carried . | . . 1 Final Capacity 4 | 4 4 4 Final Carried 1 | . 1 1 Class Distribution -------------------- 100% | Mutant Dominant Class ---------------- Mutant | -10/Materials Mutant | -9/Materials Resources | -11 -10 -9 ----------- Run | Scr Mat Mat Matter Collected 220 | 200 . 20 Remotely . | . . . Salvage Created 20 | . . 20 Parts 3 | . . 3 Haulers Intercepted . | . . . Recyclers Shooed . | . . . Parts Field Recycled . | . . . Retrieved Matter . | . . . Parts Self-Destructed . | . . . Prevented . | . . . Kills | -11 -10 -9 ------- Run | Scr Mat Mat Combat Hostiles Destroyed 1 | . . 1 Melee 1 | . . 1 Classes Destroyed 1 | . . 1 Swarmer 1 | . . 1 Best Kill Streak 1 | . . 1 Combat Bots Only 1 | . . 1 Max Kills in Single Turn 1 | . . 1 Gunslinging . | . . . Exploded . | . . . Melee 1 | . . 1 Uniques/NPCs Destroyed . | . . . Combat | -11 -10 -9 -------- Run | Scr Mat Mat Damage Taken 685 | . 240 445 Core 604 | . 196 408 Absorbed by Shields . | . . . Core Remaining (%) 60 | 100 21 . Volleys Fired . | . . . Largest . | . . . Hottest . | . . . Shots Fired . | . . . Gun . | . . . Cannon . | . . . Launcher . | . . . Special . | . . . Kinetic . | . . . Thermal . | . . . Explosive . | . . . Electromagnetic . | . . . Robot Hit Streak . | . . . Robot Miss Streak . | . . . Penetration Max . | . . . Secondary Targets . | . . . Shots Hit Robots . | . . . Core Hits 2 | . . 2 Critical Hits . | . . . Critical Kills . | . . . Critical Parts Destroyed . | . . . Melee Attacks . | . . . Impact . | . . . Slashing . | . . . Piercing . | . . . Sneak Attacks . | . . . Combat Hostiles . | . . . Follow-up Attacks . | . . . Damage Inflicted 16 | . . 16 Guns . | . . . Cannons . | . . . Explosions . | . . . Melee . | . . . Ramming 16 | . . 16 Kinetic . | . . . Thermal . | . . . Explosive . | . . . Electromagnetic . | . . . Impact . | . . . Slashing . | . . . Piercing . | . . . Highest Corruption 2 | . 2 . Average Corruption 2 | . 2 . Corruption Purged . | . . . Overload Shots . | . . . Overflow Damage . | . . . Projectiles . | . . . Explosions . | . . . Melee . | . . . Knockbacks . | . . . Impact . | . . . Kinetic . | . . . Secondary . | . . . Self-Inflicted Damage 7 | . . 7 Shots . | . . . Rammed 4 | . . 4 Targets Rammed 4 | . . 4 Kicked . | . . . Crushed . | . . . Highest Temperature . | . . . Average Temperature . | . . . Received Heat Transfer 174 | . 90 84 Siege Activations . | . . . Robots Corrupted . | . . . Combat Hostiles . | . . . Parts Fried . | . . . Impact Corruptions . | . . . Robots Melted . | . . . Combat Hostiles . | . . . Parts Melted . | . . . Heat Transferred . | . . . Parts Sabotaged . | . . . Parts Stolen . | . . . Parts Stripped . | . . . Power Chain Reactions . | . . . Missiles Intercepted . | . . . Alert | -11 -10 -9 ------- Run | Scr Mat Mat Peak Influence 155 | . 60 155 Initial 20 | . . 20 Average 42 | . 37 56 Maximum Alert Level . | . . . Low Security (%) 100 | 100 100 100 Level 1 . | . . . Level 2 . | . . . Level 3 . | . . . Level 4 . | . . . Level 5 . | . . . High Security . | . . . Max Security . | . . . Squads Dispatched 6 | . 3 3 Investigation 1 | . . 1 Extermination . | . . . Reinforcement 5 | . 3 2 Assault . | . . . Garrison . | . . . Intercept . | . . . Construction Impeded . | . . . Haulers Reinforced . | . . . Stealth | -11 -10 -9 --------- Run | Scr Mat Mat Distress Signals 1 | . . 1 Communications Jammed . | . . . Distress Signals . | . . . Times Spotted 41 | . 15 26 Peak Tracking Total 21 | . 11 21 Tactical Retreats 3 | . 1 2 Traps | -11 -10 -9 ------- Run | Scr Mat Mat Traps Triggered 2 | . 1 1 Indirectly . | . . . Trap Hack Attempts . | . . . Triggered . | . . . Disarmed . | . . . Reprogrammed . | . . . Reused . | . . . Traps Extracted . | . . . Installed . | . . . Triggered . | . . . Machines | -11 -10 -9 ---------- Run | Scr Mat Mat Machines Disabled . | . . . Max in Single Turn . | . . . Machines Sabotaged . | . . . Garrisons Compromised . | . . . Overloaded Fab Kills . | . . . Fab Network Shutdowns . | . . . Hacking | -11 -10 -9 --------- Run | Scr Mat Mat Machines Accessed 1 | . . 1 Terminals 1 | . . 1 Fabricators . | . . . Repair Stations . | . . . Recycling Units . | . . . Scanalyzers . | . . . Garrison Access . | . . . Total Hacks 2 | . . 2 Successful . | . . . Failed 2 | . . 2 Catastrophic . | . . . Database Lockouts . | . . . Manual 2 | . . 2 Terminals 2 | . . 2 Fabricators . | . . . Repair Stations . | . . . Recycling Units . | . . . Scanalyzers . | . . . Garrison Access . | . . . Terminal Hacks . | . . . Fabricator Hacks . | . . . Repair Station Hacks . | . . . Recycling Unit Hacks . | . . . Scanalyzer . | . . . Garrison Access Hacks . | . . . Unauthorized Hacks . | . . . Terminals . | . . . Fabricators . | . . . Repair Stations . | . . . Recycling Units . | . . . Scanalyzers . | . . . Garrison Access . | . . . Data Cores Recovered . | . . . Used . | . . . Hacking Detections 1 | . . 1 Full Trace Events . | . . . Feedback Events . | . . . Feedback Blocked . | . . . Robot Schematics Acquired . | . . . Robots Built . | . . . Matter . | . . . Time . | . . . Total Robot Build Rating . | . . . Part Schematics Acquired . | . . . Parts Built . | . . . Matter . | . . . Time . | . . . Total Part Build Rating . | . . . Parts Repaired . | . . . Time . | . . . Parts Recycled . | . . . Recycled Matter . | . . . Retrieved Matter . | . . . Retrieved Components . | . . . Parts Scanalyzed . | . . . Part Schematics Acquired . | . . . Parts Damaged . | . . . Bothacking | -11 -10 -9 ------------ Run | Scr Mat Mat Used RIF Installer . | . . . Robots Hacked . | . . . Non-combat . | . . . Combat . | . . . Robot Hacks Applied . | . . . Relay Couplers Released . | . . . Robots Rewired . | . . . Allies Hacked . | . . . Hacks Repelled . | . . . Allies | -11 -10 -9 -------- Run | Scr Mat Mat Total Allies . | . . . Largest Group . | . . . Highest-Rated Group . | . . . Highest-Rated Ally . | . . . Total Orders . | . . . Ally Attacks . | . . . Total Damage . | . . . Kills . | . . . Allies Corrupted . | . . . Allies Melted . | . . . Intel | -11 -10 -9 ------- Run | Scr Mat Mat Robot Analysis Total . | . . . Derelict Logs Recovered . | . . . Drone Launches . | . . . Drone Recoveries . | . . . Exploration | -11 -10 -9 ------------- Run | Scr Mat Mat Turns Passed 185 | 14 96 75 Spaces Moved 342 | 29 183 130 Core 340 | 29 183 128 Treads . | . . . Legs . | . . . Wheels . | . . . Hover . | . . . Flight 2 | . . 2 Fastest Speed 40 | 50 50 40 Average Speed 49 | 50 50 49 Slowest Speed 50 | 50 50 50 Overloaded Moves . | . . . Propulsion Burnouts . | . . . Robots Hopped . | . . . Cave-ins Triggered . | . . . Exploration Rate (%) 24 | 3 44 26 Regions Visited 2 Branch Regions . Pre-discovered Areas . | . . . Known Exits Taken 1 | . 1 . Unknown Exits Taken 1 | 1 . . Scrap Searched . | . . . Spaces Dug . | . . . Terrain Destroyed . | . . . Melee . | . . . Projectile . | . . . AOE . | . . . Terrain Rammed . | . . . Walls Destroyed . | . . . Machines Disabled . | . . . Actions | -11 -10 -9 --------- Run | Scr Mat Mat Total 351 | 28 185 138 Wait . | . . . Move 340 | 28 182 130 Hop . | . . . Pick Up 1 | . 1 . Fast Attach 6 | . 2 4 Attach . | . . . Detach . | . . . Swap . | . . . Drop . | . . . Fire . | . . . Melee . | . . . Ram 4 | . . 4 Kick . | . . . Crush . | . . . Escape Stasis . | . . . Rewire . | . . . Trap . | . . . Miscellaneous . | . . . Route ------- -11/Scrapyard -10/Materials -9/Materials History --------- Turn | Location | Event 4 | -11/Scrapyard | Discovered new exit (range 15) 15 | -11/Scrapyard | Entered Materials 88 | -10/Materials | Core integrity fell below 50% 104 | -10/Materials | Discovered new exit (range 14) 110 | -10/Materials | Identified exit to Materials 111 | -10/Materials | Entered another Materials area 111 | -9/Materials | Evolved 2 slots: Utility x2 177 | -9/Materials | Core integrity fell below 50% 181 | -9/Materials | Core integrity fell below 20% 186 | -9/Materials | Destroyed by S-10 Pest with Light Assault Rifle Last Messages --------------- 00139_ Triggered Alarm Trap. 00139_ An alarm sounds. 00139_ ALERT: Alarm triggered, dispatching investigation squad. 00139_ U-05 Engineer lays Concrete. 00140_ ALERT: Hostiles spotted, dispatching reinforcements to Terminal M008. 00145_ K-01 Serf collects debris. 00155_ W-16 Scout sends out distress signal. 00163_ Connecting with Terminal... 00178_ Slammed into S-10 Pest. 00178_ Adv. Signal Interpreter permanently disabled. 00178_ Destabilizing: Short circuit. 00179_ Slammed into S-10 Pest. 00181_ S-10 Pest destroyed. 00181_ Destabilizing: System interference. 00181_ Adv. Signal Interpreter temporarily disabled. 00181_ Signal Interpreter temporarily disabled. 00182_ Acquired 20 matter. 00182_ Acquired Flight Unit. 00184_ Flight Unit destroyed. Map ----- +----------------------------------------------------+ | #####????????????????????????????????????????????? | | #????????????????????????????????????????????? | | """ #????????????????????????????????????????????? | | """ ########?????????????????????????????????????? | | """ # !!**#?????????????????????????????????????? | | # !!!**#?????????????????????????????????????? | | # #?????????????????????????????????????? | | #+### ##????????????????????????????????????? | | #????????????????????????????????????? | | #????????????????????????????????????? | | #????????????????????????????????????? | | ######### #????????????????????????????????????? | | # #????????????????????????????????????? | | """ # #????????????????????????????????????? | | """ / #####+#########??????????????????????? | | """ # [ ??????????????????????? | | # a ??????????????????????? | | """ ?# !! ??????????????????????? | | """ ?# ### !! ![ #??????????????????????? | | ?""" ??# #?# [[ g#??????????????????????? | | ??# #?# [[ g #??????????????????????? | | ######### #?# u g#??????????????????????? | | #?# #??????????????????????? | | #?# #??????????????????????? | | #?# #??????????????????????? | | #############?#^ @#??????????????????????? | | ?/! #????## ^ #??????????????????????? | | /! "T" ?????"" """ #??????????????????????? | | /! """ ????#"T """ #??????????????????????? | | #???#"" """ ###########????????????? | | ?############## * ## %#????????????? | | ???????# # s## #????????????? | | ???????# # """ ss## """ #????????????? | | ???????# """" # """ sg # """ #????????????? | | ?####### """" # """ugg + """ #????????????? | | ?# # """" # Yg # """ #????????????? | | ## # # u # """ #????????????? | | / # # #????????????? | | ## # + # #????????????? | | ?# # ###### ################????????????? | | ?## ## "T" #????# #???????????????????????????? | | ??# ## """ #????# #???????????????????????????? | | ??# ## #????# #???????????????????????????? | | ??# #########????# #???????????????????????????? | | ??# #????????????# #???????????????????????????? | | ?? ????????????? ????????????????????????????? | | ?# ???????????? ????????????????????????????? | | ?# ???????????? ????????????????????????????? | | ?# ??????????? ????????????????????????????? | | ?# ###??????????#????????????????????????????? | +----------------------------------------------------+ Best States ------------- Heat Dissipation 28 Energy Generation 5 Energy Capacity 100 Matter Stores 300 Matter Capacity 300 Sight Range 16 Terrain Scan Range 14 Terrain Scan Density 10 Evasion (%) 50 Item Schematics ----------------- None Robot Schematics ------------------ None Fabricated ------------ Nothing Alien Tech Used ----------------- None Achievements -------------- None Challenges ------------ None Game ------ Seed HeavyMetafieldBox Manual? 0 Play Time 00:03:42 Cumulative 75.2 hours Start 2021.10.23 @ 21:53:13 End 2021.10.23 @ 21:55:40 Sessions 1 Manual Loads 0 Difficulty Rogue Special Mode None Game No. 105 Rogue 105 Adventurer 0 Explorer 0 Win Type - Total 0 Types 0/0/0/0/0/0/0/0/0 Lore% 38 Gallery% 55 Achievement% 37 Wizard Run 0 Options --------- ASCII 0 Keyboard 1 Movement Vi Keybinds 0 Fullscreen 1 Font 18/SmallcapsGlow Map View 76x50 Tactical HUD 1 Map Filters NONE Filters NONE Steam 1 RUN: 9ec2d353-6c66-43c3-a861-f2efb7297353